Cogmind - Beta 13 @@@ ROGUE MODE // 2024.04.19 @ 14:59:40 Player: meetlok Result: Destroyed by G-34 Mercenary with Small Laser Performance ------------- Evolutions (0) 0 Regions Visited (1) 200 Robots Destroyed (14) 70 Value Destroyed (432) 432 Prototype IDs (2) 40 Alien Tech Used (0) 0 Bonus (0) 0 TOTAL SCORE: 742 Bonus ------- None Cogmind --------- Core Integrity 0/250 Matter 270/300 Energy 246/250 System Corruption 0% Temperature Cool (8) Movement Walking (120) Location -10/Materials Parts ------- > --- POWER (1) -------- Ion Engine > --- PROPULSION (2) --- Aluminum Leg Aluminum Leg > --- UTILITY (2) ------ Medium Storage Unit Structural Scanner > --- WEAPON (2) ------- Small Laser Light Assault Rifle > --- INVENTORY (10) --- Light Ion Engine Aluminum Leg Aluminum Leg Large Storage Unit Large Matter Pod (150) Targeting Computer Peak State ------------ > --- POWER ------------ Ion Engine > --- PROPULSION ------- Aluminum Leg Aluminum Leg > --- UTILITY ---------- Medium Storage Unit Structural Scanner > --- WEAPON ----------- EM Pulse Gun Light Assault Rifle > --- INVENTORY -------- Light Ion Engine Aluminum Leg Aluminum Leg Large Storage Unit Large Matter Pod Seismic Detector EM Pulse Gun Light Assault Rifle Mining Laser Welding Torch [Rating: 8] Favorites ----------- Power Ion Engine Engine Ion Engine Propulsion Aluminum Leg Treads Light Treads Leg Aluminum Leg Utility Medium Storage Unit Device Structural Scanner Storage Medium Storage Unit Weapon Light Assault Rifle Energy Gun EM Pulse Gun Ballistic Gun Light Assault Rifle Special Weapon Welding Torch Build | -11 -10 ------- Run | Yrd Mat Slots Evolved . | . . Power . | . . Propulsion . | . . Utility . | . . Weapon . | . . Parts Attached 27 | 8 19 Power 4 | 2 2 Engine 4 | 2 2 Core . | . . Reactor . | . . Propulsion 10 | 3 7 Treads 1 | 1 . Leg 9 | 2 7 Wheel . | . . Hover . | . . Flight . | . . Utility 3 | 1 2 Device 1 | . 1 Storage 2 | 1 1 Processor . | . . Hackware . | . . Protection . | . . Artifact . | . . Weapon 10 | 2 8 Energy Gun 3 | 1 2 Energy Cannon . | . . Ballistic Gun 4 | 1 3 Ballistic Cannon . | . . Launcher . | . . Special Weapon 3 | . 3 Impact Weapon . | . . Slashing Weapon . | . . Piercing Weapon . | . . Special Melee Weapon . | . . Unidentified Prototypes . | . . Parts Lost 6 | . 6 Power 1 | . 1 Propulsion 2 | . 2 Utility . | . . Weapon 3 | . 3 Highest Loss Streak 6 | . 6 To Critical Strikes . | . . Average Slot Usage (%) 93 | . 93 Engine 13 | . 13 Leg 27 | . 27 Device 9 | . 9 Storage 14 | . 14 Energy Gun 13 | . 13 Ballistic Gun 12 | . 12 Special Weapon 2 | . 2 Naked Turns . | . . Heaviest Build 19 | 13 19 Greatest Support 20 | 20 20 Greatest Overweight (x) 1 | 1 . Average Overweight (x) . | . . Largest Inventory Capacity 10 | 8 10 Average Capacity 9 | 7 9 Most Carried 10 | 2 10 Average Carried 7 | 1 7 Final Capacity 10 | 8 10 Final Carried 6 | 2 6 Class Distribution -------------------- 76% | Mutant 23% | Scavenger-Mutant Dominant Class ---------------- Mutant | -10/Materials Resources | -11 -10 ----------- Run | Yrd Mat Matter Collected 616 | 217 399 Remotely . | . . Salvage Created 551 | . 551 Parts 27 | . 27 Haulers Intercepted 2 | . 2 Recyclers Shooed . | . . Parts Field Recycled . | . . Retrieved Matter . | . . Parts Self-Destructed . | . . Prevented . | . . Kills | -11 -10 ------- Run | Yrd Mat Combat Hostiles Destroyed 11 | . 11 Guns 8 | . 8 Cannons 2 | . 2 Classes Destroyed 3 | . 3 Builder 1 | . 1 Hauler 2 | . 2 Grunt 11 | . 11 Best Kill Streak 4 | . 4 Combat Bots Only 4 | . 4 Max Kills in Single Turn 1 | . 1 Gunslinging . | . . Exploded . | . . Melee . | . . Uniques/NPCs Destroyed . | . . Combat | -11 -10 -------- Run | Yrd Mat Hostile Shots Fired 117 | . 117 Missed 37 | . 37 Damage Taken 1044 | . 1044 Core 251 | . 251 Absorbed by Shields . | . . Regen/Repaired (Parts) 49 | . 49 Core Remaining (%) 100 | 100 . Volleys Fired 76 | . 76 Largest 2 | . 2 Hottest 120 | . 120 Shots Fired 142 | . 142 Gun 125 | . 125 Cannon . | . . Launcher . | . . Special 17 | . 17 Kinetic 66 | . 66 Thermal 35 | . 35 Explosive . | . . Electromagnetic 41 | . 41 Robot Hit Streak 13 | . 13 Robot Miss Streak 2 | . 2 Penetration Max . | . . Secondary Targets . | . . Shots Hit Robots 93 | . 93 Core Hits 33 | . 33 Critical Kills . | . . Critical Parts Destroyed . | . . Critical Strikes . | . . Melee Attacks . | . . Impact . | . . Slashing . | . . Piercing . | . . Sneak Attacks . | . . Combat Hostiles . | . . Follow-up Attacks . | . . Damage Inflicted 1074 | 4 1070 Guns 897 | . 897 Cannons . | . . Explosions 94 | . 94 Melee . | . . Ramming 18 | 4 14 Kinetic 336 | . 336 Thermal 281 | . 281 Explosive . | . . Electromagnetic 439 | . 439 Impact . | . . Slashing . | . . Piercing . | . . Highest Corruption . | . . Average Corruption . | . . Corruption Purged . | . . Corruption Blocked . | . . Overload Shots . | . . Overflow Damage . | . . Projectiles . | . . Explosions . | . . Melee . | . . Knockbacks 1 | . 1 Impact 1 | . 1 Kinetic . | . . Secondary . | . . Self-Inflicted Damage 53 | . 53 Shots 2 | . 2 Rammed . | . . Targets Rammed 4 | 1 3 Kicked 4 | 1 3 Crushed . | . . Highest Temperature 233 | . 233 Average Temperature 66 | . 66 Received Heat Transfer 558 | . 558 Effects 1 | . 1 Energy Bleed 1 | . 1 Siege Activations . | . . Robots Corrupted 1 | . 1 Combat Hostiles 1 | . 1 Parts Fried 2 | . 2 Impact Corruptions . | . . Robots Melted . | . . Combat Hostiles . | . . Parts Melted . | . . Heat Transferred 675 | . 675 Parts Sabotaged . | . . Parts Stolen . | . . Parts Stripped . | . . Power Chain Reactions 2 | . 2 Alert | -11 -10 ------- Run | Yrd Mat Peak Influence 186 | . 186 Initial . | . . Average 50 | . 55 Maximum Alert Level . | . . Low Security (%) 100 | 100 100 Level 1 . | . . Level 2 . | . . Level 3 . | . . Level 4 . | . . Level 5 . | . . High Security . | . . Max Security . | . . Squads Dispatched 2 | . 2 Investigation 2 | . 2 Extermination . | . . Reinforcement . | . . Assault . | . . Garrison . | . . Intercept . | . . Searches Triggered . | . . Construction Impeded . | . . Haulers Reinforced . | . . Active Scanning Responses . | . . Cargo Convoy Interrupts . | . . Stealth | -11 -10 --------- Run | Yrd Mat Distress Signals 1 | . 1 Communications Jammed . | . . Distress Signals . | . . Times Spotted 28 | . 28 Peak Tracking Total 8 | . 8 Tactical Retreats 4 | . 4 Traps | -11 -10 ------- Run | Yrd Mat Traps Triggered 1 | . 1 Indirectly . | . . Trap Hack Attempts . | . . Triggered . | . . Disarmed . | . . Reprogrammed . | . . Reused . | . . Traps Extracted . | . . Installed . | . . Triggered . | . . Machines | -11 -10 ---------- Run | Yrd Mat Machines Disabled 1 | . 1 Max in Single Turn 1 | . 1 Machines Repaired . | . . Machines Dismantled . | . . Machines Sabotaged . | . . Overloaded Fab Kills . | . . Hacking | -11 -10 --------- Run | Yrd Mat Machines Accessed 6 | . 6 Terminals 4 | . 4 Fabricators . | . . Repair Stations 1 | . 1 Recycling Units 1 | . 1 Scanalyzers . | . . Garrison Access . | . . Total Hacks 19 | . 19 Successful 8 | . 8 Failed 11 | . 11 Catastrophic 1 | . 1 Database Lockouts . | . . Manual 3 | . 3 Terminals 13 | . 13 Fabricators . | . . Repair Stations 4 | . 4 Recycling Units 2 | . 2 Scanalyzers . | . . Garrison Access . | . . Terminal Hacks 5 | . 5 Robot Analysis 1 | . 1 Prototype ID Bank 1 | . 1 Locate Traps 2 | . 2 Zone Layout 1 | . 1 Fabricator Hacks . | . . Repair Station Hacks 3 | . 3 Scan Component 2 | . 2 Repair 1 | . 1 Recycling Unit Hacks . | . . Scanalyzer . | . . Garrison Access Hacks . | . . Unauthorized Hacks . | . . Terminals . | . . Fabricators . | . . Repair Stations . | . . Recycling Units . | . . Scanalyzers . | . . Garrison Access . | . . Data Cores Recovered . | . . Used . | . . Hacking Detections 6 | . 6 Full Trace Events 3 | . 3 Feedback Events . | . . Feedback Blocked . | . . Robot Schematics Acquired . | . . Robots Built . | . . Authchips . | . . Time . | . . Total Robot Build Rating . | . . Part Schematics Acquired . | . . Parts Built . | . . Authchips . | . . Time . | . . Total Part Build Rating . | . . Parts Repaired 1 | . 1 Time 13 | . 13 Parts Recycled . | . . Recycled Matter . | . . Retrieved Matter . | . . Retrieved Components . | . . Parts Scanalyzed . | . . Part Schematics Acquired . | . . Parts Damaged . | . . Bothacking | -11 -10 ------------ Run | Yrd Mat Used RIF Installer . | . . Robots Hacked . | . . Non-combat . | . . Combat . | . . Robot Hacks Applied . | . . Relay Couplers Released . | . . Fabnet Peak Effective % . | . . Robots Rewired . | . . Allies Hacked . | . . Hacks Repelled . | . . Allies | -11 -10 -------- Run | Yrd Mat Total Allies . | . . Largest Group . | . . Highest-Rated Group . | . . Highest-Rated Ally . | . . Total Orders . | . . Ally Attacks . | . . Total Damage . | . . Kills . | . . Allies Corrupted . | . . Allies Melted . | . . Intel | -11 -10 ------- Run | Yrd Mat Robot Analysis Total 1 | . 1 Derelict Logs Recovered . | . . Drone Launches . | . . Drone Recoveries . | . . Exploration | -11 -10 ------------- Run | Yrd Mat Turns Passed 1078 | 109 969 Spaces Moved 613 | 63 550 Core 1 | 1 . Treads 12 | 12 . Legs 600 | 50 550 Wheels . | . . Hover . | . . Flight . | . . Fastest Speed 50 | 50 120 Average Speed 123 | 149 120 Slowest Speed 190 | 190 120 Overloaded Moves . | . . Propulsion Burnouts . | . . Robots Hopped . | . . Cave-ins Triggered . | . . Exploration Rate (%) 37 | 4 70 Regions Visited 1 Branch Regions . Pre-discovered Areas . | . . Known Exits Taken . | . . Unknown Exits Taken 1 | 1 . Scrap Searched . | . . Spaces Dug . | . . Terrain Destroyed 3 | . 3 Melee . | . . Projectile . | . . AOE 3 | . 3 Terrain Rammed . | . . Walls Destroyed . | . . Machines Disabled . | . . Actions | -11 -10 --------- Run | Yrd Mat Total 795 | 74 721 Wait 53 | . 53 Move 612 | 62 550 Hop . | . . Pick Up 14 | 2 12 Fast Attach 9 | 6 3 Attach 7 | . 7 Detach 2 | . 2 Swap 11 | 2 9 Drop 7 | 1 6 Fire 76 | . 76 Melee . | . . Ram . | . . Kick 4 | 1 3 Crush . | . . Escape Stasis . | . . Rewire . | . . Trap . | . . Miscellaneous . | . . Route ------- -11/Scrapyard -10/Materials (discovered 5 exits: [*Mat x2] / [*Min x2] / [Sub]) History --------- Turn | Location | Event 27 | -11/Scrapyard | Discovered new exit (range 16) 110 | -11/Scrapyard | Entered Materials 168 | -10/Materials | Discovered new exit (range 10) 303 | -10/Materials | Build established: Mutant 545 | -10/Materials | Discovered new exit (range 5) 709 | -10/Materials | Discovered new exit (range 9) 726 | -10/Materials | Discovered new exit (range 10) 802 | -10/Materials | Core integrity fell below 50% 873 | -10/Materials | Lost 6 parts (1p2n3w) 929 | -10/Materials | Core integrity fell below 20% 1045 | -10/Materials | Repaired Aluminum Leg 1056 | -10/Materials | Discovered new exit (range 16) 1079 | -10/Materials | Destroyed by G-34 Mercenary with Small Laser Last Messages --------------- Aluminum Leg Rating: 1 Time: 13 >>Repair Repairing Aluminum Leg... ETC: 13 Repair station completes Aluminum Leg repairs. Acquired Aluminum Leg. R-06 Scavenger collects Broken Mining Laser. R-06 Scavenger collects Welding Torch. EXIT=FOUND K-01 Serf cleans the Terminal. Connecting with Terminal... >>Traps(Locate) Found 3 traps in 2 arrays: 1x Explosive Trap 2x Alarm Trap Map updated. ALERT: Suspicious activity at Terminal M002. Dispatching Investigation squad. Map ----- +----------------------------------------------------+ | ??????????????????????????????? | | ??????????????????????????????? | | ??????????????????????????????? | | ??????????????????????????????? | | ??????????????????????????????? | | ??????????????????????????????? | | ??????????????????????????????? | | ??????????????????????????????? | | ??????????????????????????????? | | ??????????????????????????????? | | ???? # ??????????????????????? | | ????## ??????????????????????? | | ????## ??????????????????????? | | ????## ??????????????????????? | | ????## ??????????????????????? | | ????## ??????????????????????? | | ????## ############### ?? | | ???### ##################??### | | ???### | | ???##^^ | | ???## """ """ | | ???## """ """ | | ##### """ """ | | ####### ##? | | # # ##? | | # @ g """"" ### | | # # g """"" ### | | # ##+######### """"" # | | # # ## # | | # ???????????## # | | # ????????????## # | | # ???????? ## # | | # ?????????###### # | | # ?? # ^+ | | # ??? # < "T" # | | # ??? # """ # | | ##????####+###############/## | | ##????# #### # | | ???????????????## """"""" ### | | ???????????????## """"""" ! ### | | ???????????????????"""""" ##? | | ???????????????## ?"""""" ##? | | ???????????????## """"""" ##? | | ????????????##### ### | | ????????????#############/##### | | ????????????## | | ????????????## | | ????????????## | | ????????????## | | ????????????## #### | +----------------------------------------------------+ Best States ------------- Heat Dissipation 25 Energy Generation 10 Energy Capacity 250 Matter Stores 300 Matter Capacity 300 Sight Range 16 Terrain Scan Density 10 Evasion (%) 55 Recoil Reduction 1 Item Schematics ----------------- None Robot Schematics ------------------ None Fabricated ------------ Nothing Alien Tech Used ----------------- None Achievements -------------- None Challenges ------------ None Game ------ Seed ProtonDeliveryGreatsword Manual? 0 Play Time 00:15:53 Cumulative 35.1 hours Start 2024.04.19 @ 14:39:39 End 2024.04.19 @ 14:59:40 Sessions 1 Manual Loads 0 Difficulty Rogue Special Mode None Game No. 21 Rogue 21 Adventurer 0 Explorer 0 Win Type - Total 0 Types 0/0/0/0/0/0/0/0/0 Lore% 13 Gallery% 24 Achievement% 16 Wizard Run 0 Options --------- Layout 1 ASCII 0 Keyboard 1 Movement Numpad Keybinds 0 Fullscreen 1 Font 24/Smallcaps Map View 50x35 Zoom Use 0% Tactical HUD 0 Map Filters NONE Filters NONE Steam 1 RUN: f481b728-9aff-4503-9f40-3dbab0d14cb9